[Event "4th Tata Steel India Rapid Women 2022"]
[Site "Kolkota"]
[Date "2022.11.29"]
[Round "2.1"]
[White "Harika, Dronavalli"]
[Black "Kiolbasa, Oliwia"]
[Result "1-0"]
[ECO "E06"]
[WhiteElo "2507"]
[BlackElo "2406"]
[Annotator "TA"]
[PlyCount "93"]
[EventDate "2022.11.29"]
[EventType "tourn"]
[EventCountry "IND"]
[SourceTitle "playchess.com"]
[Source "ChessBase"]
[SourceQuality "1"]
[TimeControl "900+10"]

{[%evp 18,93,15,12,14,10,7,16,8,13,71,77,84,57,82,95,88,79,73,55,55,55,55,54,136,87,103,92,89,90,94,72,86,85,91,68,71,54,104,85,110,102,306,302,291,283,305,300,364,357,590,456,391,380,977,783,1485,1355,1658,2219,1818,1668,6522,6490,7442,7090,29969,29963,29965,29965,7395,5501,29972,29973,11284,6089,29975,12305]} 1. c4 {[%emt 0:00:01]} e6 {[%emt 0:00:02]} 2. g3 {[%emt 0:00:02]} d5 {[%emt 0:00:02]} 3. d4 {[%emt 0:00:04]} Nf6 {[%emt 0:00:06]} 4. Bg2 {[%emt 0:00:01]} Be7 {[%emt 0:00:07]} 5. Nf3 {[%emt 0:00:02]} O-O {[%emt 0:00:05]} 6. Nc3 {[%emt 0:00:03]} dxc4 {[%emt 0:02:44]} 7. Ne5 {[%emt 0:00:02]} c5 {[%emt 0:03:44]} 8. dxc5 {[%emt 0:00:06]} Qxd1+ {[%emt 0:01:13]} 9. Nxd1 {[%emt 0:00:03]} Bxc5 {[%emt 0:00:02]} 10. O-O {[%emt 0:00:14]} Nd5 {[%emt 0:01:56] E06: Closed Catalan: Early deviations.} 11. Ne3 {[%emt 0:01:27]} Nxe3 {[%emt 0:00:28]} 12. Bxe3 {[%emt 0:00:05]} Bxe3 {[%emt 0:00:55] The position is equal.} 13. fxe3 {[%emt 0:00:02]} Nc6 {[%emt 0:00:01]} (13... c3 $11) 14. Nxc4 $16 {[%emt 0:03:34] [#] White has more active pieces. The black rooks are badly placed.} ({Reject} 14. Bxc6 bxc6 15. Rac1 Ba6 $11) 14... Rd8 $146 {[%emt 0:03:40]} ({Predecessor:} 14... Rb8 15. Rac1 Ne7 16. Rfd1 g6 17. Rd3 b6 18. Ne5 Re8 19. Rc7 a5 20. Rxe7 Rxe7 {1-0 (27) Khusenkhojaev,M (2417)-Balabayeva,K (2179) Almaty 2022}) 15. Rad1 {[%emt 0:03:35]} Rxd1 {[%emt 0:00:22]} 16. Rxd1 {[%emt 0:00:02] [#] Black must now prevent Bxc6.} Kf8 {[%emt 0:00:01]} 17. Bxc6 {[%emt 0:00:39]} bxc6 {[%emt 0:00:02][%mdl 4096] Endgame KRB-KRN} 18. Rd6 {[%emt 0:02:05]} (18. Ne5 $5 {[%cal Rd1d8]}) 18... Ke7 {[%emt 0:00:47]} 19. Rxc6 {[%emt 0:00:10] Strongly threatening Rc7+.} Bd7 {[%emt 0:00:01]} 20. Rc7 {[%emt 0:00:21] [#] aiming for Ne5.} f6 {[%emt 0:00:02] Inhibits Ne5.} (20... Rc8 $14 21. Rxc8 Bxc8) 21. Kf2 {[%emt 0:01:04]} (21. b3 $142) 21... Kd8 {[%emt 0:00:40]} 22. Rb7 {[%emt 0:00:46]} Rc8 {[%emt 0:01:00]} 23. b3 {[%emt 0:00:06]} Rc7 {[%emt 0:00:10]} 24. Rxc7 {[%emt 0:00:55]} Kxc7 {[%emt 0:00:01] KB-KN} 25. e4 {[%emt 0:00:01]} e5 {[%emt 0:00:27]} 26. Ke3 {[%emt 0:00:01]} Kc6 {[%emt 0:00:02]} 27. Kd3 {[%emt 0:00:02]} Be6 {[%emt 0:00:27]} (27... Kc5 $14) 28. Kc3 {[%emt 0:00:17]} g6 {[%emt 0:00:19]} 29. Ne3 {[%emt 0:00:20]} a5 $2 {[%emt 0:00:15] This move loses the game for Black.} (29... Kc5 $16) 30. Nc4 $18 {[%emt 0:01:32]} a4 {[%emt 0:00:10]} 31. bxa4 {[%emt 0:00:04]} Kc5 {[%emt 0:00:02]} 32. Ne3 {[%emt 0:00:01]} Bxa2 {[%emt 0:00:19]} 33. Ng4 {[%emt 0:00:02]} Bc4 $2 {[%emt 0:00:09]} (33... f5 34. exf5 gxf5 35. Nxe5 Be6 36. Nd3+ Kb6) 34. e3 {[%emt 0:00:09]} Be2 {[%emt 0:00:08]} 35. Nxf6 {[%emt 0:00:03]} Bd1 $2 {[%emt 0:00:01]} (35... h5 36. h4 Bf1) 36. a5 {[%emt 0:00:10]} ({Less strong is} 36. Nxh7 Bxa4 37. Nf8 Be8 $18) 36... Bf3 {[%emt 0:00:21]} 37. Kd3 {[%emt 0:00:29]} Bg2 {[%emt 0:00:13]} 38. Nxh7 {[%emt 0:00:09]} Bf1+ {[%emt 0:00:09]} 39. Kd2 {[%emt 0:00:03]} Kb5 {[%emt 0:00:07]} 40. Nf8 {[%emt 0:00:09]} g5 {[%emt 0:00:02]} 41. Nd7 {[%emt 0:00:19]} Kxa5 {[%emt 0:00:16]} 42. Nxe5 {[%emt 0:00:02]} Kb5 {[%emt 0:00:01]} 43. Nf7 {[%emt 0:00:04]} g4 {[%emt 0:00:02]} 44. Ne5 {[%emt 0:00:05]} Bh3 {[%emt 0:00:14]} 45. Ke2 {[%emt 0:00:04]} Bg2 {[%emt 0:00:30]} 46. Kd3 {[%emt 0:00:12]} Kc5 {[%emt 0:00:11]} 47. Nxg4 {[%emt 0:00:05] Weighted Error Value: White=0.13 (very precise) /Black=0.62} 1-0

[Event "4th Tata Steel India Rapid Women 2022"]
[Site "Kolkota"]
[Date "2022.11.29"]
[Round "2.2"]
[White "Dzagnidze, Nana"]
[Black "Vaishali, Rameshbabu"]
[Result "1-0"]
[ECO "D78"]
[WhiteElo "2517"]
[BlackElo "2454"]
[Annotator "TA"]
[PlyCount "91"]
[EventDate "2022.11.29"]
[EventType "tourn"]
[EventCountry "IND"]
[SourceTitle "playchess.com"]
[Source "ChessBase"]
[SourceQuality "1"]
[TimeControl "900+10"]

{[%evp 11,91,0,16,-2,11,-8,0,-24,0,0,0,0,0,0,0,0,-1,0,0,0,0,0,0,0,0,0,0,-2,-5,-2,-8,0,0,-52,-36,-94,-38,-45,-28,-47,42,10,34,0,0,-29,355,318,675,643,792,413,589,485,536,496,478,0,520,431,430,429,428,414,519,508,483,453,478,481,484,447,506,475,509,520,794,756,1310,450,1783,464]} 1. d4 {[%emt 0:00:03]} Nf6 {[%emt 0:00:04]} 2. c4 {[%emt 0:00:04]} g6 {[%emt 0:00:07]} 3. g3 {[%emt 0:00:04]} c6 {[%emt 0:00:05]} 4. Nf3 {[%emt 0:00:20]} Bg7 {[%emt 0:00:03]} 5. Bg2 {[%emt 0:00:11]} d5 {[%emt 0:00:03]} 6. O-O {[%emt 0:00:35]} O-O {[%emt 0:00:03]} 7. a4 {[%emt 0:00:19] 7.Nc3 is the recent fashion. D78: Fianchetto Grünfeld: 6 0-0 c6.} a5 {[%emt 0:01:05] [#]} 8. Bf4 $146 {[%emt 0:01:48]} ({Predecessor:} 8. Nc3 dxc4 9. e4 Na6 10. Qe2 Nb4 11. Rd1 Nd3 12. h3 Qb6 13. Rb1 Nxc1 14. Rbxc1 Rd8 15. d5 Bd7 16. Ne5 cxd5 17. Nxd7 Nxd7 18. Nxd5 Qxb2 {½-½ (24) Le,Q (2728)-Erigaisi,A (2718) chess24.com INT 2022}) 8... Na6 {[%emt 0:02:08]} 9. Qc1 {[%emt 0:01:00] The position is equal.} dxc4 {[%emt 0:00:25]} 10. Na3 {[%emt 0:00:14]} Be6 {[%emt 0:02:49]} 11. Rd1 {[%emt 0:00:36]} Bd5 {[%emt 0:02:15]} (11... Ne4 {is more complex.} 12. Nxc4 Nb4 13. Nfe5 Nd6) 12. Nxc4 {[%emt 0:01:35]} Nb4 {[%emt 0:01:50]} 13. Nfe5 {[%emt 0:03:56]} Bxg2 {[%emt 0:01:12]} 14. Kxg2 {[%emt 0:00:01]} b5 {[%emt 0:01:06]} 15. Na3 {[%emt 0:00:07][%csl LRb5,LRc6]} Rc8 {[%emt 0:00:51]} 16. f3 {[%emt 0:00:59]} Nfd5 {[%emt 0:00:33]} 17. Bh6 {[%emt 0:01:10]} Nb6 {[%emt 0:01:30]} (17... bxa4 18. e4 $14 (18. Bxg7 Kxg7 19. e4 f6 $14)) 18. Bxg7 {[%emt 0:00:32]} Kxg7 {[%emt 0:00:02]} 19. axb5 {[%emt 0:01:46]} cxb5 {[%emt 0:00:01]} 20. Qd2 {[%emt 0:00:02]} Qd5 {[%emt 0:00:20]} 21. Ng4 {[%emt 0:01:46]} Rfd8 {[%emt 0:01:52]} 22. e4 {[%emt 0:00:53]} (22. Rab1 $11) 22... Qb3 $1 $15 {[%emt 0:00:07] Hoping for ...Nc2.} 23. d5 {[%emt 0:00:04] [#]} (23. Nxb5 $2 Rc2 24. Rac1 Rxd2+ $19) (23. Ne3 $1 $15) 23... Nc2 {[%emt 0:00:10]} ({Black should play} 23... N4xd5 $1 $17 {[%cal Oh7h5] Threatens to win with ...h5!} 24. exd5 Rxd5 25. Qh6+ Kg8) 24. Rac1 {[%emt 0:00:03][%cal Rc1c2]} Nxa3 {[%emt 0:00:12]} 25. bxa3 {[%emt 0:00:48] And now d6 would win.} Rc4 {[%emt 0:00:02] Prevents d6.} (25... Nc4 $15 26. Qc3+ Qxc3 27. Rxc3 h5) 26. Qh6+ {[%emt 0:00:20]} (26. Qxa5 Qb2+ 27. Nf2 Rxc1 $19) (26. Rxc4 Nxc4 27. Qd4+ e5 $17) 26... Kg8 {[%emt 0:00:09]} 27. Qe3 {[%emt 0:00:05]} (27. d6 $5 {[%cal Rd6e7]} Qxa3 28. Rxc4 Nxc4 29. dxe7 Qxe7 30. e5 $1 Nxe5 31. Rxd8+ Qxd8 32. Nxe5 $11) 27... Qb2+ {[%emt 0:00:22]} 28. Kh3 {[%emt 0:00:13]} Rdc8 $2 {[%emt 0:00:08][%mdl 8192] Black is on the road to losing.} (28... Rxc1 $1 $11 {and Black is okay.} 29. Qxc1 Qxc1 30. Rxc1 Rc8) 29. Rb1 $18 {[%emt 0:00:04]} Qc2 {[%emt 0:00:14]} (29... Qc3 30. d6 (30. Qxb6 Qxf3 31. Qe3 Qxe3 $16) 30... exd6) 30. Qxb6 {[%emt 0:00:04]} h5 {[%emt 0:00:02]} 31. Nf2 {[%emt 0:00:02]} R4c5 {[%emt 0:00:08]} (31... Qa2 $142 32. Rxb5 Rc2) 32. Kg2 {[%emt 0:00:05]} Qe2 {[%emt 0:00:11]} 33. Re1 {[%emt 0:00:05]} Qd2 {[%emt 0:00:03]} 34. Red1 {[%emt 0:00:10] Inhibits a4.} Qe2 {[%emt 0:00:03]} 35. Qxa5 {[%emt 0:00:06]} Rc3 {[%emt 0:00:02]} 36. Qxb5 {[%emt 0:00:20]} Qxf3+ {[%emt 0:00:02]} 37. Kg1 {[%emt 0:00:01]} h4 {[%emt 0:00:33]} 38. gxh4 {[%emt 0:00:06] White is clearly winning.} Qf4 {[%emt 0:00:19]} 39. Qf1 {[%emt 0:00:42] Against Rh3} Qxh4 {[%emt 0:00:16]} 40. Rd3 {[%emt 0:00:12]} ({But not} 40. Qg2 Rc2 41. Rf1 Kg7 $18) 40... Qg5+ {[%emt 0:00:09]} 41. Kh1 {[%emt 0:00:03]} Rc2 {[%emt 0:00:02]} 42. Qg2 {[%emt 0:00:18]} Qf4 {[%emt 0:00:06]} 43. Rf1 {[%emt 0:00:05]} Ra2 {[%emt 0:00:18]} (43... Rc1 $142 44. Nd1 Qe5) 44. Rf3 {[%emt 0:00:03]} Qe5 {[%emt 0:00:10] [#]} 45. Qg3 {[%emt 0:00:03]} (45. Rxf7 $142 $3 Kxf7 (45... Qh5 46. Rxe7) 46. Nd3+ Kg7 47. Nxe5 Rxg2 48. Kxg2) 45... Qh5 {[%emt 0:00:07]} (45... Qxg3 $142 46. hxg3 Rd2) 46. Qh3 {[%emt 0:00:05] Weighted Error Value: White=0.49/Black=0.46} (46. d6 $142) 1-0

[Event "4th Tata Steel India Rapid Women 2022"]
[Site "Kolkota"]
[Date "2022.11.29"]
[Round "2.3"]
[White "Koneru, Humpy"]
[Black "Ushenina, Anna"]
[Result "1/2-1/2"]
[ECO "D53"]
[WhiteElo "2574"]
[BlackElo "2454"]
[Annotator "TA"]
[PlyCount "43"]
[EventDate "2022.11.29"]
[EventType "tourn"]
[EventCountry "IND"]
[SourceTitle "playchess.com"]
[Source "ChessBase"]
[SourceQuality "1"]
[TimeControl "900+10"]

{[%evp 11,43,12,10,10,20,19,20,22,18,14,25,6,11,5,5,1,7,0,6,4,7,0,14,0,0,0,7,0,0,-63,0,0,0,4]} 1. d4 {[%emt 0:00:02]} d5 {[%emt 0:00:08]} 2. c4 {[%emt 0:00:04]} e6 {[%emt 0:00:03]} 3. Nf3 {[%emt 0:00:13]} Nf6 {[%emt 0:00:08]} 4. Nc3 {[%emt 0:00:07]} Be7 {[%emt 0:00:20]} 5. Bg5 {[%emt 0:00:30]} h6 {[%emt 0:00:18]} 6. Bh4 {[%emt 0:00:07]} dxc4 {[%emt 0:00:08]} 7. e3 {[%emt 0:01:43] D53: Queen's Gambit Declined: 4 Bg5 Be7: Early deviations.} c5 {[%emt 0:00:02]} 8. Bxc4 {[%emt 0:00:58]} cxd4 {[%emt 0:00:02]} 9. Nxd4 {[%emt 0:01:08]} Bd7 {[%emt 0:00:01]} 10. O-O {[%emt 0:01:06]} Nc6 {[%emt 0:00:02]} 11. Nf3 {[%emt 0:02:51]} O-O {[%emt 0:00:12]} 12. Rc1 {[%emt 0:00:16]} Nh5 {[%emt 0:01:16]} 13. Bxe7 {[%emt 0:00:10]} Qxe7 {[%emt 0:00:02]} 14. Qe2 {[%emt 0:00:16]} Rfd8 {[%emt 0:00:19]} 15. a3 {[%emt 0:00:15] [#]} Be8 $146 {[%emt 0:00:18]} ({Predecessor:} 15... Rac8 16. Ba2 a6 17. h3 Be8 18. Bb1 Na5 19. Nd2 Nf6 20. Rfd1 Kf8 21. Ba2 Nc6 {½-½ (30) Kuzubov,Y (2624)-Salgado Lopez,I (2604) Toledo 2021}) 16. b4 {[%emt 0:00:45]} Rac8 {[%emt 0:03:54]} 17. Ba2 {[%emt 0:02:16]} a6 {[%emt 0:05:15]} 18. h3 {[%emt 0:01:14]} Rc7 {[%emt 0:01:10]} 19. Ne4 {[%emt 0:02:22]} Nf6 {[%emt 0:00:12]} 20. Nfd2 {[%emt 0:00:59]} (20. Bb1 $11) 20... Nxe4 {[%emt 0:01:07]} (20... Ne5 $1 $15 21. Rxc7 Qxc7) 21. Nxe4 $11 {[%emt 0:00:02]} Rdc8 {[%emt 0:00:15][%cal Oc6d4] [#] ...Nd4! is the strong threat.} 22. Qb2 {[%emt 0:00:45] Inhibits Nd4. An even fight not without its subleties.   Weighted Error Value: White=0.12 (very precise) /Black=0.05 (flawless)} 1/2-1/2

[Event "4th Tata Steel India Rapid Women 2022"]
[Site "Kolkota"]
[Date "2022.11.29"]
[Round "2.4"]
[White "Vantika Agrawal"]
[Black "Savitha Shri B"]
[Result "1-0"]
[ECO "E69"]
[WhiteElo "2362"]
[BlackElo "2411"]
[Annotator "TA"]
[PlyCount "67"]
[EventDate "2022.11.29"]
[EventType "tourn"]
[EventCountry "IND"]
[SourceTitle "playchess.com"]
[Source "ChessBase"]
[SourceQuality "1"]
[TimeControl "900+10"]

{[%evp 26,67,58,62,97,86,85,80,80,77,106,102,127,89,95,94,195,197,282,120,182,166,213,231,300,274,397,373,752,741,722,543,482,502,1062,1026,2541,2344,29959,29953,29991,29992,29995,29996]} 1. d4 {[%emt 0:00:13]} Nf6 {[%emt 0:00:02]} 2. c4 {[%emt 0:00:02]} g6 {[%emt 0:00:02]} 3. g3 {[%emt 0:00:02]} Bg7 {[%emt 0:00:02]} 4. Bg2 {[%emt 0:00:02]} c6 {[%emt 0:00:01]} 5. e4 {[%emt 0:01:10]} d6 {[%emt 0:01:05]} 6. Nc3 {[%emt 0:00:09]} O-O {[%emt 0:00:03]} 7. Nf3 {[%emt 0:00:22]} e5 {[%emt 0:00:33]} 8. O-O {[%emt 0:00:17]} exd4 {[%emt 0:00:21]} 9. Nxd4 {[%emt 0:00:06]} Nbd7 {[%emt 0:00:03]} 10. h3 {[%emt 0:00:22]} Re8 {[%emt 0:00:16]} 11. Be3 {[%emt 0:00:55]} Nc5 {[%emt 0:01:39]} 12. Qc2 {[%emt 0:00:13]} Qe7 {[%emt 0:01:14]} 13. Rfe1 {[%emt 0:00:26]} a5 {[%emt 0:02:54]} 14. Rad1 {[%emt 0:00:57]} Qc7 {[%emt 0:00:45] [#] E69: King's Indian: Fianchetto: 6...Nbd7 7 0-0 e5 8 e4 c6 9 h3.} ({Weaker is} 14... Nfxe4 15. Bxe4 Nxe4 16. Nxe4 Qxe4 17. Bd2 $16) (14... Ncxe4 $2 15. Bc1 $18) 15. Ndb5 $1 {[%emt 0:01:46]} cxb5 {[%emt 0:00:50]} 16. Nxb5 {[%emt 0:00:03]} Qe7 {[%emt 0:01:28] White is better.} 17. Nxd6 {[%emt 0:00:17]} Ne6 {[%emt 0:00:16]} 18. e5 {[%emt 0:00:44][%mdl 64] Deflection} Nd7 {[%emt 0:01:52]} 19. Nxe8 {[%emt 0:03:28] White has more active pieces.} (19. Bxb7 $2 {perishes.} Bxb7 20. Nxb7 Nxe5 $19) 19... Qxe8 {[%emt 0:00:18]} 20. f4 {[%emt 0:00:34][%cal Bf2f4,Bf4f5][%mdl 32] [#]} Ndc5 $146 {[%emt 0:00:44]} (20... Nd8 $16 {keeps fighting.} 21. Qa4 Ra6) ({Predecessor:} 20... Bf8 21. g4 Ng7 22. Qf2 Nb8 23. Bc5 Nc6 24. Bd6 Be6 25. b3 Qc8 26. Bxf8 Qxf8 27. Be4 Re8 28. f5 Bc8 29. e6 fxe6 30. f6 {1-0 (30) Wojtkiewicz,A (2460)-Garkov,M (2415) Warsaw 1989}) 21. g4 $18 {[%emt 0:00:26]} Bf8 {[%emt 0:00:58]} (21... Nd7 $142 22. f5 Nef8) 22. Kh1 {[%emt 0:02:07]} (22. f5 $18 {is more deadly.}) 22... Bd7 {[%emt 0:00:25]} (22... Ng7 $16) 23. f5 $36 {[%emt 0:02:36][%mdl 2048] White is on the roll.} Ng7 {[%emt 0:00:51]} (23... Nd8 $142 24. Bd5 Rc8 25. fxg6 hxg6) 24. e6 {[%emt 0:00:12]} Bc6 {[%emt 0:00:00]} 25. Bd4 {[%emt 0:00:38][%cal Oe6e7] [#] aiming for e7!} gxf5 {[%emt 0:00:40]} (25... Bxg2+ {is a better defense.} 26. Qxg2 Rd8 27. Bxc5 Rxd1 28. Rxd1 Bxc5 29. Qxb7 Nxe6) 26. e7 $1 {[%emt 0:00:27] Really sharp!} ({Less strong is} 26. gxf5 fxe6 27. fxe6 Ncxe6 $11) 26... Nce6 {[%emt 0:01:05]} (26... Bxe7 27. Bxc5 Be4 28. Bxe4 fxe4 29. Rxe4 Ne6 30. Bxe7 Qxe7) 27. exf8=Q+ {[%emt 0:00:10]} Qxf8 {[%emt 0:00:01]} 28. Bxc6 {[%emt 0:00:17]} Nxd4 {[%emt 0:00:34]} 29. Rxd4 {[%emt 0:00:07][%cal Bd1d4,Bd4d7,Bd7f7][%mdl 32]} Qc5 {[%emt 0:00:12]} (29... bxc6 $142 30. gxf5 Rd8) 30. Bxb7 {[%emt 0:00:32] And now Rd7 would win.} Rb8 {[%emt 0:00:01]} 31. Rd7 {[%emt 0:00:14]} fxg4 {[%emt 0:00:21]} 32. Bd5 {[%emt 0:00:11] White mates.} gxh3 {[%emt 0:00:40]} 33. Rxf7 {[%emt 0:00:07]} Kh8 {[%emt 0:00:00]} 34. Qc3 {[%emt 0:00:09][%csl LRg7,LRh3] Weighted Error Value: White=0.35/Black=0.77} 1-0

[Event "4th Tata Steel India Rapid Women 2022"]
[Site "Kolkota"]
[Date "2022.11.29"]
[Round "2.5"]
[White "Muzychuk, Anna"]
[Black "Muzychuk, Mariya"]
[Result "1/2-1/2"]
[ECO "C78"]
[WhiteElo "2525"]
[BlackElo "2528"]
[Annotator "TA"]
[PlyCount "52"]
[EventDate "2022.11.29"]
[EventType "tourn"]
[EventCountry "IND"]
[SourceTitle "playchess.com"]
[Source "ChessBase"]
[SourceQuality "1"]
[TimeControl "900+10"]

{[%evp 12,52,33,21,35,22,26,12,6,10,14,12,0,0,0,14,12,0,12,12,12,14,12,13,18,8,8,8,8,6,6,0,0,0,0,0,0,0,6,6,7,6,7]} 1. e4 {[%emt 0:00:01]} e5 {[%emt 0:00:04]} 2. Nf3 {[%emt 0:00:02]} Nc6 {[%emt 0:00:08]} 3. Bb5 {[%emt 0:00:03]} a6 {[%emt 0:00:05]} 4. Ba4 {[%emt 0:00:02]} Nf6 {[%emt 0:00:04]} 5. O-O {[%emt 0:00:04]} Bc5 {[%emt 0:02:42]} 6. c3 {[%emt 0:00:56]} b5 {[%emt 0:00:14]} 7. Bc2 {[%emt 0:02:18] Strongly threatening d4.} d5 {[%emt 0:00:03] C78: Ruy Lopez: Archangelsk and Möller Defences.} 8. d4 {[%emt 0:00:13] exd5 is the strong threat.} dxe4 {[%emt 0:00:19]} 9. Nbd2 {[%emt 0:02:43][%cal Bb1d2,Bd2e4,Be4c5][%mdl 32]} exf3 {[%emt 0:02:32] The position is equal.} ({Don't do} 9... exd4 10. Nxe4 Be7 11. Nxf6+ (11. Nxd4 Nxd4 12. Qxd4 Qxd4 $11) (11. cxd4 O-O $14) 11... Bxf6 12. Re1+ Be6 13. Be4 $16) 10. Qxf3 {[%emt 0:00:01]} Be7 {[%emt 0:00:03] And now ...Bd7 would win.} (10... exd4 $2 11. Qxc6+ Bd7 12. Qxc5 $18) (10... e4 $2 11. Nxe4 (11. Bxe4 Nxe4 12. Qxe4+ Be7 $16) 11... Bxd4 12. cxd4 $16) 11. Qxc6+ {[%emt 0:00:12]} Bd7 {[%emt 0:00:03]} 12. Qf3 {[%emt 0:00:02]} exd4 {[%emt 0:00:03]} 13. Ne4 {[%emt 0:01:19]} O-O {[%emt 0:03:57]} 14. Rd1 {[%emt 0:01:06]} c5 {[%emt 0:00:40]} 15. Bg5 {[%emt 0:00:24]} Re8 {[%emt 0:02:40] White must now prevent ...Nxe4.} 16. Bxf6 {[%emt 0:00:54][%mdl 64] [#] Deflection} Bxf6 {[%emt 0:00:02]} 17. Nxc5 {[%emt 0:00:06]} Bc6 {[%emt 0:00:39]} 18. Qxc6 {[%emt 0:01:09]} Rc8 {[%emt 0:00:01] [#]} 19. Qxa6 {[%emt 0:00:10]} Rxc5 {[%emt 0:00:02] [#]} 20. Bb3 $146 {[%emt 0:00:46]} ({Predecessor:} 20. g3 Qc8 21. Qxc8 Rexc8 22. Bb3 dxc3 23. bxc3 Rxc3 24. Rab1 R8c7 25. Rd5 b4 26. Rbd1 Rc1 27. Rxc1 Rxc1+ 28. Kg2 Rc7 29. Rb5 Be7 30. Rb8+ Bf8 31. f4 g6 {½-½ (31) Zhang,Z (2640)-Bu,X (2708) Hangzhou 2022}) 20... Qe7 {[%emt 0:00:55]} (20... Rf5 {looks sharper.} 21. Qb7 Re7 22. Qc6 Re2) 21. g3 {[%emt 0:00:55]} dxc3 {[%emt 0:00:30]} 22. bxc3 {[%emt 0:00:04]} Bxc3 {[%emt 0:00:01]} 23. Rac1 {[%emt 0:00:51]} g6 {[%emt 0:00:31]} 24. Qd6 {[%emt 0:00:17]} Qxd6 {[%emt 0:01:24]} 25. Rxd6 {[%emt 0:00:03]} Re7 {[%emt 0:00:01] Against Rd7} 26. Kg2 {[%emt 0:00:14]} Kg7 {[%emt 0:00:17] A balanced but interesting game.   Weighted Error Value: White=0.04 (flawless) /Black=0.01 (flawless)} 1/2-1/2